fUSD/lending_fUSD_20260308
["ID","MTS","AMOUNT","RATE_DAILY","PERIOD"]
[407978219,1772959593404,-1515.0,0.000499,120]
[407978220,1772959593432,-1515.0,0.000499,120]
[407978221,1772959593459,-1515.0,0.000499,120]
[407978222,1772959593486,-1515.0,0.000499,120]
[407978223,1772959593513,-1538.91941432,0.000499,120]
[407978224,1772959593541,-151.0,0.000499,120]
[407978225,1772959593568,-153.955216,0.000499,120]
[407978226,1772959593595,-156.415233,0.000499,120]
[407978227,1772959593620,-156.415233,0.000499,120]
[407978228,1772959593646,-156.415233,0.000499,120]
[407978229,1772959593674,-156.415233,0.000499,120]
[407978230,1772959593703,-156.415233,0.000499,120]
[407978231,1772959593730,-156.415233,0.000499,120]
[407978232,1772959593756,-156.415233,0.000499,120]
[407978233,1772959593781,-156.415233,0.000499,120]
[407978234,1772959593808,-151.347837,0.000499,120]
[407978235,1772959593834,-151.0,0.000499,120]
[407978236,1772959593860,-151.0,0.000499,120]
[407978237,1772959593887,-151.0,0.000499,120]
[407978238,1772959593916,-151.0,0.000499,120]
[407978239,1772959593942,-42534.2564775,0.000499,30]
[407978240,1772959593968,-151.0,0.000499,60]
[407978241,1772959593995,-151.0,0.000499,60]
[407978242,1772959594020,-251.241059,0.000499,120]
[407978243,1772959594045,-409.118743,0.000499,120]
[407978244,1772959594073,-409.118743,0.000499,120]
[407978245,1772959594101,-409.118743,0.000499,120]
[407978246,1772959594131,-409.118743,0.000499,120]
[407978247,1772959594159,-409.118743,0.000499,120]
[407978248,1772959594186,-409.118743,0.000499,120]
[407978249,1772959594213,-409.118743,0.000499,120]
[407978250,1772959594240,-409.118743,0.000499,120]
[407978251,1772959594269,-151.0,0.000499,120]
[407978252,1772959594297,-151.0,0.000499,120]
[407978253,1772959594324,-151.0,0.000499,120]
[407978254,1772959594352,-4391.366336,0.000499,120]
[407978255,1772959594379,-4391.366336,0.000499,120]
[407978256,1772959594405,-4391.366336,0.000499,120]
[407978257,1772959594434,-4391.366336,0.000499,120]
[407978258,1772959594460,-4391.366336,0.000499,120]
[407978259,1772959594488,-261.42041837,0.000499,120]
[407978260,1772959594514,-4391.366336,0.000499,120]
[407978261,1772959594541,-4391.366336,0.000499,120]
[407978262,1772959594567,-4391.366336,0.000499,120]
[407978263,1772959594593,-4391.366336,0.000499,120]
[407978264,1772959594621,-4391.366336,0.000499,120]
[407978265,1772959594649,-4391.366336,0.000499,120]
[407978266,1772959594676,-4391.366336,0.000499,120]
[407978267,1772959594709,-151.0,0.000499,120]
[407978268,1772959594736,-151.0,0.000499,120]
[407978269,1772959594763,-151.0,0.000499,120]
[407978270,1772959594787,-151.0,0.000499,120]
[407978271,1772959594815,-151.0,0.000499,120]
[407978272,1772959594842,-151.0,0.000499,120]
[407978273,1772959594868,-151.0,0.000499,120]
[407978274,1772959594895,-151.0,0.000499,120]
[407978275,1772959594922,-151.0,0.000499,120]
[407978276,1772959594950,-151.0,0.000499,120]
[407978277,1772959594977,-151.0,0.000499,120]
[407978278,1772959595003,-151.0,0.000499,120]
[407978279,1772959595030,-151.0,0.000499,120]
[407978280,1772959595057,-50000.0,0.0004999,30]
[407978281,1772959595083,-1057.71581425,0.00049992,60]
[407978282,1772959595110,-971.49367852,0.00049992,60]
[407978283,1772959595136,-930.00017397,0.00049999,120]
[407978284,1772959595164,-300.0,0.00049999,30]
[407978285,1772959595193,-151.0,0.00049999,30]
[407978286,1772959595221,-1030.0,0.00049999,30]
[407978287,1772959595248,-250.0,0.00049999,30]
[407978288,1772959595276,-500.0,0.00049999,30]
[407978289,1772959595304,-200.0,0.00049999,30]
[407978290,1772959595329,-520.0,0.00049999,30]
[407978291,1772959595356,-500.0,0.00049999,30]
[407978292,1772959595384,-151.0,0.00049999,35]
[407978293,1772959595411,-151.0,0.00049999,30]
[407978294,1772959595439,-250.0,0.00049999,35]
[407978295,1772959595468,-500.0,0.00049999,35]
[407978296,1772959595496,-539.24,0.00049999,35]
[407978297,1772959595637,-347.42282659,0.00049999,35]
[407978298,1772959595695,-500.0,0.00049999,35]
[407978299,1772959595728,-200.0,0.00049999,35]
[407978300,1772959595759,-151.0,0.00049999,36]
[407978301,1772959595787,-156.587,0.00049999,35]
[407978302,1772959595816,-250.0,0.00049999,36]
[407978303,1772959595843,-559.19188,0.00049999,36]
[407978304,1772959595870,-500.0,0.00049999,36]
[407978305,1772959595896,-500.0,0.00049999,36]
[407978306,1772959595920,-200.0,0.00049999,36]
[407978307,1772959595947,-151.0,0.00049999,37]
[407978308,1772959595971,-250.0,0.00049999,37]
[407978309,1772959595997,-162.380719,0.00049999,36]
[407978310,1772959596022,-579.88197956,0.00049999,37]
[407978311,1772959596047,-500.0,0.00049999,37]
[407978312,1772959596072,-500.0,0.00049999,37]
[407978313,1772959596098,-151.0,0.00049999,38]
[407978314,1772959596123,-200.0,0.00049999,37]
[407978315,1772959596148,-295.5532364,0.00049999,37]
[407978316,1772959596174,-250.0,0.00049999,38]
[407978317,1772959596200,-601.3376128,0.00049999,38]
[407978318,1772959596227,-500.0,0.00049999,38]
[407978319,1772959596252,-500.0,0.00049999,38]
[407978320,1772959596278,-2500.0,0.00049999,30]
[407978321,1772959596308,-151.0,0.00049999,40]
[407978322,1772959596335,-200.0,0.00049999,38]
[407978323,1772959596362,-250.0,0.00049999,40]
[407978324,1772959596388,-500.0,0.00049999,40]
[407978325,1772959596414,-623.58710448,0.00049999,40]
[407978326,1772959596440,-2500.0,0.00049999,35]
[407978327,1772959596464,-151.0,0.00049999,41]
[407978328,1772959596488,-200.0,0.00049999,40]
[407978329,1772959596512,-205.37563911,0.00049999,41]
[407978330,1772959596537,-500.0,0.00049999,40]
[407978331,1772959596562,-500.0,0.00049999,41]
[407978332,1772959596587,-646.65982734,0.00049999,41]
[407978333,1772959596613,-2500.0,0.00049999,36]
[407978334,1772959596639,-151.0,0.00049999,44]
[407978335,1772959596664,-200.0,0.00049999,41]
[407978336,1772959596689,-500.0,0.00049999,41]
[407978337,1772959596715,-500.0,0.00049999,44]
[407978338,1772959596740,-756.39738976,0.00049999,44]
[407978339,1772959596767,-2500.0,0.00049999,37]
[407978340,1772959596792,-151.0,0.00049999,45]
[407978341,1772959596816,-200.0,0.00049999,44]
[407978342,1772959596841,-500.0,0.00049999,44]
[407978343,1772959596865,-500.0,0.00049999,45]
[407978344,1772959596891,-2500.0,0.00049999,38]
[407978345,1772959596915,-220.0,0.00049999,30]
[407978346,1772959596940,-200.0,0.00049999,45]
[407978347,1772959596965,-500.0,0.00049999,45]
[407978348,1772959596990,-2500.0,0.00049999,40]
[407978349,1772959597015,-220.0,0.00049999,35]
[407978350,1772959597041,-200.0,0.00049999,46]
[407978351,1772959597067,-2500.0,0.00049999,41]
[407978352,1772959597091,-220.0,0.00049999,36]
[407978353,1772959597116,-500.0,0.00049999,30]
[407978354,1772959597140,-181.77714217,0.00049999,60]
[407978355,1772959597166,-2500.0,0.00049999,44]
[407978356,1772959597190,-220.0,0.00049999,37]
[407978357,1772959597216,-3000.0,0.00049999,30]
[407978358,1772959597243,-2500.0,0.00049999,45]
[407978359,1772959597269,-221.25186495,0.00049999,38]
[407978360,1772959597295,-609.621819,0.00049999,30]
[407978361,1772959597321,-250.0,0.00049999,30]
[407978362,1772959597346,-250.0,0.00049999,35]
[407978363,1772959597371,-500.0,0.00049999,30]
[407978364,1772959597396,-250.0,0.00049999,36]
[407978365,1772959597421,-250.0,0.00049999,30]
[407978366,1772959597448,-518.5,0.00049999,35]
[407978367,1772959597475,-3000.0,0.00049999,35]
[407978368,1772959597501,-620.0,0.00049999,30]
[407978369,1772959597531,-500.0,0.00049999,35]
[407978370,1772959597557,-250.0,0.00049999,37]
[407978371,1772959597583,-250.0,0.00049999,35]
[407978372,1772959597609,-642.94,0.00049999,35]
[407978373,1772959597634,-537.6845,0.00049999,36]
[407978374,1772959597661,-500.0,0.00049999,36]
[407978375,1772959597688,-250.0,0.00049999,38]
[407978376,1772959597714,-259.63761657,0.00049999,36]
[407978377,1772959597740,-199.83697123,0.00049999,37]
[407978378,1772959597766,-666.72878,0.00049999,36]
[407978379,1772959597790,-500.0,0.00049999,37]
[407978380,1772959597815,-250.0,0.00049999,40]
[407978381,1772959597840,-691.39774486,0.00049999,37]
[407978382,1772959597865,-500.0,0.00049999,38]
[407978383,1772959597890,-250.0,0.00049999,41]
[407978384,1772959597915,-201.4007416,0.00049999,36]
[407978385,1772959597939,-506.36058125,0.00049999,38]
[407978386,1772959597964,-500.0,0.00049999,40]
[407978387,1772959597991,-250.0,0.00049999,44]
[407978388,1772959598017,-250.0,0.00049999,30]
[407978389,1772959598042,-500.0,0.00049999,41]
[407978390,1772959598067,-163.77085491,0.00049999,45]
[407978391,1772959598092,-250.0,0.00049999,35]
[407978392,1772959598117,-500.0,0.00049999,44]
[407978393,1772959598144,-500.0,0.00049999,30]
[407978394,1772959598169,-250.0,0.00049999,36]
[407978395,1772959598195,-500.0,0.00049999,45]
[407978396,1772959598221,-518.5,0.00049999,35]
[407978397,1772959598247,-250.0,0.00049999,37]
[407978398,1772959598276,-537.6845,0.00049999,36]
[407978399,1772959598302,-757.94767592,0.00049999,30]
[407978400,1772959598328,-250.0,0.00049999,38]
[407978401,1772959598355,-557.5788265,0.00049999,37]
[407978402,1772959598523,-250.0,0.00049999,40]
[407978403,1772959598550,-170.0,0.00049999,30]
[407978404,1772959598579,-578.20924308,0.00049999,38]
[407978405,1772959598605,-250.0,0.00049999,41]
[407978406,1772959598639,-176.29,0.00049999,35]
[407978407,1772959598666,-151.0,0.00049999,30]
[407978408,1772959598694,-599.60298507,0.00049999,40]
[407978409,1772959598719,-250.0,0.00049999,44]
[407978410,1772959598744,-151.0,0.00049999,35]
[407978411,1772959598771,-182.81273,0.00049999,36]
[407978412,1772959598797,-621.78829552,0.00049999,41]
[407978413,1772959598822,-250.0,0.00049999,45]
[407978414,1772959598846,-151.0,0.00049999,36]
[407978415,1772959598873,-189.57680101,0.00049999,37]
[407978416,1772959598901,-644.79446246,0.00049999,44]
[407978417,1772959598926,-151.0,0.00049999,30]
[407978418,1772959598951,-196.59114265,0.00049999,38]
[407978419,1772959598975,-156.587,0.00049999,35]
[407978420,1772959599002,-668.65185757,0.00049999,45]
[407978421,1772959599027,-251.0,0.00049999,30]
[407978422,1772959599052,-203.86501493,0.00049999,40]
[407978423,1772959599077,-162.380719,0.00049999,36]
[407978424,1772959599102,-361.38571628,0.00049999,35]
[407978425,1772959599127,-211.40802048,0.00049999,41]
[407978426,1772959599152,-236.90251885,0.00049999,37]
[407978427,1772959599176,-219.23011724,0.00049999,44]
[407978428,1772959599203,-151.0,0.00049999,30]
[407978429,1772959599228,-156.587,0.00049999,35]
[407978430,1772959599254,-227.34163157,0.00049999,45]
[407978431,1772959599280,-162.380719,0.00049999,36]
[407978432,1772959599307,-235.75327194,0.00049999,46]
[407978433,1772959599334,-151.0,0.00049999,30]
[407978434,1772959599362,-168.3888056,0.00049999,37]
[407978435,1772959599388,-244.476143,0.00049999,60]
[407978436,1772959599413,-151.42631785,0.00049999,35]
[407978437,1772959599438,-253.52176029,0.00049999,90]
[407978438,1772959599464,-200.0,0.00049999,30]
[407978439,1772959599489,-200.0,0.00049999,35]
[407978440,1772959599514,-200.0,0.00049999,36]
[407978441,1772959599540,-200.0,0.00049999,37]
[407978442,1772959599566,-500.0,0.00049999,30]
[407978443,1772959599592,-500.0,0.00049999,35]
[407978444,1772959599617,-500.0,0.00049999,36]
[407978445,1772959599646,-500.0,0.00049999,37]
[407978446,1772959599672,-500.0,0.00049999,38]
[407978447,1772959599701,-500.0,0.00049999,40]
[407978448,1772959599727,-500.0,0.00049999,41]
[407978449,1772959599753,-500.0,0.00049999,44]
[407978450,1772959599780,-500.0,0.00049999,45]
[407978451,1772959599805,-500.0,0.00049999,120]
[407978452,1772959599830,-492.88581074,0.00049999,120]
[407978453,1772959599854,-568.37963317,0.00049999,120]
[407978454,1772959599879,-500.0,0.00049999,120]
[407978455,1772959599904,-500.0,0.00049999,120]
[407978456,1772959599932,-500.0,0.00049999,120]
[407978457,1772959599957,-500.0,0.00049999,120]
[407978458,1772959599981,-184.68235013,0.00049999,120]
[407978459,1772959600006,-179.18595741,0.00049999,31]
[407978460,1772959600030,-430.92548362,0.00049999,120]
[407978461,1772959600055,-1000.0,0.00049999,120]
[407978462,1772959600080,-662.99736337,0.0005,120]
[407978463,1772959600107,-187375.04856766,0.0005,45]
[407978464,1772959600136,-1000000.0,0.0005,46]
[407978465,1772959600164,-1000000.0,0.0005,47]
[407978466,1772959600188,-168177.71635692,0.0005,120]
[407978467,1772959600216,-1000000.0,0.0005,65]
[407978468,1772959600245,-1000000.0,0.0005,67]
[407978469,1772959600272,-39781.97308616,0.0005,72]
[407978470,1772959608835,-400.0,0.00043068,120]
[407978471,1772959608860,-400.0,0.00043068,120]
[407978472,1772959608884,-250.0,0.00043068,120]
[407978473,1772959608910,-171.9187,0.00046267,30]
[407978474,1772959608936,-171.9187,0.00046268,30]
[407978475,1772959608963,-500.0,0.00048321,60]
[407978476,1772959608990,-300.0,0.0004985,120]
[407978477,1772959609016,-500.0,0.00049899,120]
[407978478,1772959609041,-500.0,0.00049899,120]
[407978479,1772959609068,-500.0,0.00049899,120]
[407978480,1772959609092,-453.31902202,0.00049899,120]
[407978481,1772959609122,-151.0,0.000499,120]
[407978482,1772959609287,-151.0,0.000499,120]
[407978483,1772959609313,-508.736,0.0004991,120]
[407978484,1772959609343,-760217.02691384,0.0005,72]
[407978485,1772959609377,-980558.56,0.0005,58]
[407978486,1772959609403,-8991.92755317,0.0005,120]
[407978487,1772959609430,-1244.98,0.0005,120]
[407978488,1772959609456,-241.93,0.0005,120]
[407978489,1772959609483,-150.0,0.0005,40]
[407978490,1772959609509,-154.63,0.0005,120]
[407978491,1772959609535,-2200.62,0.0005,120]
[407978492,1772959609560,-158.36,0.0005,120]
[407978493,1772959609585,-155.0478815,0.0005,30]
[407978494,1772959609610,-228.06,0.0005,120]
[407978495,1772959609637,-1113.55477448,0.0005,30]
[407978496,1772959609663,-4966.0,0.0005,120]
[407978497,1772959609688,-186.37,0.0005,120]
[407978498,1772959609718,-632.704401,0.0005,120]
[407978499,1772959609742,-722.67257258,0.0005,120]
[407978500,1772959609767,-529.22,0.0005,120]
[407978501,1772959609792,-734.0,0.0005,120]
[407978502,1772959609820,-1036.03388328,0.0005,30]
[407978503,1772959609845,-200.36,0.0005,120]
[407978504,1772959609869,-1987.15,0.0005,120]
[407978505,1772959609895,-397.43,0.0005,120]
[407978506,1772959609919,-10000.0,0.0005,120]
[407978507,1772959609947,-500.9,0.0005,120]
[407978508,1772959609972,-500.0,0.0005,30]
[407978509,1772959609996,-500.0,0.0005,30]
[407978510,1772959610022,-500.0,0.0005,30]
[407978511,1772959610047,-500.0,0.0005,30]
[407978512,1772959610076,-500.0,0.0005,30]
[407978513,1772959610101,-500.0,0.0005,30]
[407978514,1772959610126,-500.0,0.0005,30]
[407978515,1772959610151,-328.8460693,0.0005,30]
[407978516,1772959610175,-156.415233,0.0005,120]
[407978517,1772959610200,-156.415233,0.0005,120]
[407978518,1772959610225,-156.415233,0.0005,120]
[407978519,1772959610250,-156.415233,0.0005,120]
[407978520,1772959610275,-156.415233,0.0005,120]
[407978521,1772959610304,-156.415233,0.0005,120]
[407978522,1772959610331,-156.415233,0.0005,120]
[407978523,1772959610358,-156.415233,0.0005,120]
[407978524,1772959610386,-156.415233,0.0005,120]
[407978525,1772959610412,-156.415233,0.0005,120]
[407978526,1772959610438,-156.415233,0.0005,120]
[407978527,1772959610465,-156.415226,0.0005,120]
[407978528,1772959610491,-2199.78067645,0.0005,120]
[407978529,1772959610516,-6128.70602779,0.0005,30]
[407978530,1772959610541,-2806.35,0.0005,120]
[407978531,1772959610570,-151.0,0.0005,120]
[407978532,1772959610598,-151.0,0.0005,120]
[407978533,1772959610624,-151.0,0.0005,120]
[407978534,1772959610651,-151.0,0.0005,120]
[407978535,1772959610677,-151.0,0.0005,120]
[407978536,1772959610706,-199.526275,0.0005,120]
[407978537,1772959610733,-1141.93,0.0005,120]
[407978538,1772959610759,-151.0,0.0005,60]
[407978539,1772959610787,-185.117156,0.0005,60]
[407978540,1772959610813,-409.118743,0.0005,120]
[407978541,1772959610840,-409.118743,0.0005,120]
[407978542,1772959610866,-409.118743,0.0005,120]
[407978543,1772959610894,-409.118743,0.0005,120]
[407978544,1772959610920,-409.118743,0.0005,120]
[407978545,1772959610945,-409.118743,0.0005,120]
[407978546,1772959610973,-409.118743,0.0005,120]
[407978547,1772959610999,-409.118743,0.0005,120]
[407978548,1772959611027,-409.118743,0.0005,120]
[407978549,1772959611052,-409.118743,0.0005,120]
[407978550,1772959611079,-409.118743,0.0005,120]
[407978551,1772959611104,-409.118734,0.0005,120]
[407978552,1772959611131,-151.000006,0.0005,120]
[407978553,1772959611159,-4391.366336,0.0005,120]
[407978554,1772959611186,-4391.366336,0.0005,120]
[407978555,1772959611213,-4391.366336,0.0005,120]
[407978556,1772959611240,-4391.366336,0.0005,120]
[407978557,1772959611267,-4391.366336,0.0005,120]
[407978558,1772959611292,-4391.366336,0.0005,120]
[407978559,1772959611319,-4391.366336,0.0005,120]
[407978560,1772959611346,-4391.366344,0.0005,120]
[407978561,1772959611371,-150.0,0.0005,120]
[407978562,1772959611397,-151.0,0.0005,120]
[407978563,1772959611423,-151.0,0.0005,120]
[407978564,1772959611449,-151.0,0.0005,120]
[407978565,1772959611474,-205.538195,0.0005,120]
[407978566,1772959611500,-9603.89004594,0.0005,120]
[407978567,1772959611527,-151.0,0.0005,120]
[407978568,1772959611552,-151.0,0.0005,120]
[407978569,1772959611577,-151.0,0.0005,120]
[407978570,1772959611602,-158.731716,0.0005,120]
[407978571,1772959611627,-167.581826,0.0005,120]
[407978572,1772959611652,-151.0,0.0005,30]
[407978573,1772959611677,-279.83957576,0.0005,30]
[407978574,1772959611706,-167.97,0.0005001,120]
[407978575,1772959611732,-150.0,0.0005004,120]
[407978576,1772959611759,-150.0,0.00050083,120]
[407978577,1772959611784,-10000.0,0.00050137,120]
[407978578,1772959611808,-10000.0,0.00050137,120]
[407978579,1772959611833,-10000.0,0.00050137,120]
[407978580,1772959611858,-10000.0,0.00050137,120]
[407978581,1772959611883,-524.87,0.00050137,60]
[407978582,1772959611908,-524.87,0.00050137,60]
[407978583,1772959611933,-154.0,0.000502,120]
[407978584,1772959611958,-152.0,0.000502,120]
[407978585,1772959611983,-274.75,0.000502,30]
[407978586,1772959612007,-524.87,0.00050411,60]
[407978587,1772959612167,-524.87,0.00050411,60]
[407978588,1772959612202,-2018.76135387,0.00050498,31]
[407978589,1772959612230,-300.0,0.00050499,30]
[407978590,1772959612260,-1000000.0,0.000505,81]
[407978591,1772959612287,-1000000.0,0.000505,88]
[407978592,1772959612314,-1000000.0,0.000505,85]
[407978593,1772959612341,-4101180.43228302,0.000505,120]
[407978594,1772959616037,-192.38970834,0.00050411,30]
[407978595,1772959616067,-898819.56771698,0.000505,120]
[407978596,1772959616098,-1118767.0,0.000505,43]
[407978597,1772959616130,-1000000.0,0.000505,39]
[407978598,1772959616162,-1000000.0,0.000505,39]
[407978599,1772959616193,-9093.911419,0.000505,120]
[407978600,1772959616224,-568.70802389,0.000505,30]
[407978601,1772959616252,-500.0,0.00050513,60]
[407978602,1772959616280,-500.0,0.00050513,60]
[407978603,1772959616305,-2138.4963508,0.000506,120]
[407978604,1772959616334,-505.0,0.000506,32]
[407978605,1772959616360,-310.89756555,0.00050684,30]
[407978606,1772959616386,-524.87,0.00050685,60]
[407978607,1772959616412,-524.87,0.00050685,60]
[407978608,1772959616439,-10000.0,0.00050685,120]
[407978609,1772959616464,-10000.0,0.00050685,120]
[407978610,1772959616490,-10000.0,0.00050685,120]
[407978611,1772959616515,-10000.0,0.00050685,120]
[407978612,1772959616541,-10000.0,0.00050685,120]
[407978613,1772959616567,-10000.0,0.00050685,120]
[407978614,1772959616593,-150.0,0.00050692,120]
[407978615,1772959616619,-1029.8077,0.000507,120]
[407978616,1772959616644,-1886.6197,0.000507,120]
[407978617,1772959616669,-6000.0,0.000507,120]
[407978618,1772959616697,-168.0,0.0005083,120]
[407978619,1772959616722,-217.54204116,0.00050862,120]
[407978620,1772959616749,-2548.60846499,0.00050875,120]
[407978621,1772959616776,-3997.45091334,0.00050875,60]
[407978622,1772959616802,-24079.93272611,0.00050895,120]
[407978623,1772959616829,-14447.95983566,0.00050895,120]
[407978624,1772959616856,-5785.12121211,0.000509,120]
[407978625,1772959616881,-3332.65452661,0.000509,120]
[407978626,1772959616907,-971.821753,0.000509,120]
[407978627,1772959616933,-2186.26471123,0.00050904,120]
[407978628,1772959616959,-14631.57583112,0.00050946,120]
[407978629,1772959616984,-524.87,0.00050959,60]
[407978630,1772959617008,-524.87,0.00050959,60]
[407978631,1772959617034,-1000.0,0.00050999,120]
[407978632,1772959617064,-50000.0,0.00051,95]
[407978633,1772959617092,-1000000.0,0.00051,91]
[407978634,1772959617119,-61764.47892891,0.00051,120]
[407978635,1772959617148,-1000000.0,0.00051,85]
[407978636,1772959617174,-30000.0,0.00051,120]
[407978637,1772959617199,-522.79,0.00051,120]
[407978638,1772959617225,-3626.0,0.00051,120]
[407978639,1772959617255,-150.0,0.00051,120]
[407978640,1772959617283,-442.14241929,0.00051,120]
[407978641,1772959617309,-2606.90941326,0.00051,61]
[407978642,1772959617335,-3706.41685841,0.00051,120]
[407978643,1772959617361,-2746.00443037,0.00051,120]
[407978644,1772959617388,-1000.0,0.00051,120]
[407978645,1772959617419,-999999.0,0.00051,90]
[407978646,1772959617447,-10000.0,0.00051,120]
[407978647,1772959617472,-10000.0,0.00051,120]
[407978648,1772959617499,-1000000.0,0.00051,40]
[407978649,1772959617526,-647507.44774987,0.00051,40]
[407978650,1772959631465,-151.0,0.00048997,120]
[407978651,1772959631496,-228.53137,0.00049899,120]
[407978652,1772959631525,-500.0,0.00049999,30]
[407978653,1772959631552,-500.0,0.00049999,30]
[407978654,1772959631579,-151.0,0.00049999,30]
[407978655,1772959631607,-500.0,0.00049999,35]
[407978656,1772959631642,-500.0,0.00049999,35]
[407978657,1772959631676,-151.0,0.00049999,35]
[407978658,1772959631925,-500.0,0.00049999,36]
[407978659,1772959631957,-151.0,0.00049999,36]
[407978660,1772959631988,-500.0,0.00049999,37]
[407978661,1772959632022,-151.0,0.00049999,37]
[407978662,1772959632054,-500.0,0.00049999,38]
[407978663,1772959632086,-1000.0,0.00049999,30]
[407978664,1772959632119,-151.0,0.00049999,38]
[407978665,1772959632151,-500.0,0.00049999,40]
[407978666,1772959632185,-151.0,0.00049999,40]
[407978667,1772959632219,-500.0,0.00049999,41]
[407978668,1772959632253,-151.0,0.00049999,41]
[407978669,1772959632287,-500.0,0.00049999,44]
[407978670,1772959632320,-151.0,0.00049999,44]
[407978671,1772959632354,-500.0,0.00049999,45]
[407978672,1772959632387,-151.0,0.00049999,45]
[407978673,1772959632418,-355.53018622,0.00049999,30]
[407978674,1772959632464,-500.0,0.00049999,30]
[407978675,1772959632499,-518.5,0.00049999,35]
[407978676,1772959632534,-228.53138,0.00050099,120]
[407978677,1772959632565,-228.53138,0.00050299,120]
[407978678,1772959632596,-228.53138,0.00050499,120]
[407978679,1772959632627,-228.53138,0.00050699,120]
[407978680,1772959632659,-228.53138,0.00050899,120]
[407978681,1772959632690,-269.16423109,0.000509,120]
[407978682,1772959632727,-352492.55225013,0.00051,40]
[407978683,1772959632759,-1000000.0,0.00051,43]
[407978684,1772959632791,-1000000.0,0.00051,44]
[407978685,1772959632823,-1000000.0,0.00051,44]
[407978686,1772959632853,-1000000.0,0.00051,45]
[407978687,1772959632885,-1000000.0,0.00051,45]
[407978688,1772959632915,-600.0,0.00051,120]
[407978689,1772959632944,-600.0,0.00051,120]
[407978690,1772959632974,-600.0,0.00051,120]
[407978691,1772959633004,-600.0,0.00051,120]
[407978692,1772959633034,-243.85,0.00051,40]
[407978693,1772959633065,-3673.6788526,0.00051,120]
[407978694,1772959633099,-552797.38,0.00051,40]
[407978695,1772959633129,-11604.0,0.00051,120]
[407978696,1772959633158,-4262.16713016,0.00051,120]
[407978697,1772959633188,-1412.49665579,0.00051,120]
[407978698,1772959633218,-6128.70602779,0.00051,30]
[407978699,1772959633249,-165.92430688,0.00051,30]
[407978700,1772959633280,-180.0,0.0005122,30]
[407978701,1772959633310,-203.73215133,0.0005122,30]
[407978702,1772959633342,-155.52400354,0.00051223,30]
[407978703,1772959633375,-524.87,0.00051233,60]
[407978704,1772959633405,-524.87,0.00051233,60]
[407978705,1772959633437,-1129.27473156,0.00051234,120]
[407978706,1772959633469,-9999.99,0.000513,60]
[407978707,1772959633502,-5499.16928397,0.00051324,120]
[407978708,1772959633535,-3020.18,0.0005138,120]
[407978709,1772959633568,-4438.0,0.00051397,120]
[407978710,1772959633600,-308.16,0.00051468,120]
[407978711,1772959633630,-3027811.09191894,0.00051497,30]
[407978712,1772959642221,-180.514375,0.00046272,30]
[407978713,1772959642255,-180.514375,0.00046281,30]
[407978714,1772959642290,-624.97,0.00049799,120]
[407978715,1772959642325,-537.6845,0.00049999,36]
[407978716,1772959642359,-557.5788265,0.00049999,37]
[407978717,1772959642391,-578.20924308,0.00049999,38]
[407978718,1772959642423,-599.60298507,0.00049999,40]